[Event "DVM U10 2024"]
[Site "Duesseldorf"]
[Date "2024.12.28"]
[Round "6"]
[White "Pukshansky, Mikhail B"]
[Black "Sachse, Alina"]
[Result "1-0"]
[ECO "C57"]
[WhiteElo "2405"]
[BlackElo "848"]
[Annotator "TA"]
[PlyCount "91"]
[EventDate "2024.12.23"]
[EventType "team-tourn"]
[EventRounds "7"]
[EventCountry "GER"]
[SourceTitle "playchess.com"]
[Source "ChessBase"]
[SourceQuality "1"]
[TimeControl "3300+5"]

{[%evp 10,90,60,64,523,538,883,704,745,747,783,658,947,830,1222,1181,1320,1199,1221,1220,1216,1216,1257,1204,1250,1235,1295,1286,1382,1103,1200,1131,1246,1166,1197,1192,1172,1193,1210,1192,1352,1342,1415,1417,1460,1449,1648,1610,1651,1620,1582,1550,2137,1811,2145,2112,2766,2704,29987,29988,29989,29990,29990,29991,29991,29992,29996,29997,29997,29996,29997,29996,29997,29996,29996,29997,29997,29998,29998,29998,29998,29999,29999]} 1. e4 {[%emt 0:00:01]} e5 {[%emt 0:00:06]} 2. Nf3 {[%emt 0:00:04][%cal Bg1f3,Bf3g5,Bg5f7,Bf7h8][%mdl 32]} Nc6 {[%emt 0:00:07]} 3. Bc4 {[%emt 0:00:12]} Nf6 {[%emt 0:00:15]} 4. Ng5 {[%emt 0:00:28]} d5 {[%emt 0:00:57]} 5. exd5 {[%emt 0:00:06]} Nxd5 {[%emt 0:00:10]} 6. Nxf7 {[%emt 0:00:20]} Qd7 {[%emt 0:00:30][%mdl 8192]} (6... Kxf7 $14 7. Qf3+ Ke6) 7. Nxh8 $18 {[%emt 0:00:08]} Qd6 {[%emt 0:00:54] [#]} 8. Nf7 $1 {[%emt 0:00:14]} Qe6 {[%emt 0:00:38] White is clearly winning.} (8... Kxf7 9. Qf3+) 9. Ng5 {[%emt 0:00:22][%csl LRe6,LRh7]} Qd7 {[%emt 0:00:51]} 10. Nxh7 {[%emt 0:00:24]} Qf7 {[%emt 0:00:32] Prevents Qh5.} 11. Nxf8 {[%emt 0:00:43]} Qxf8 {[%emt 0:00:22]} 12. Bxd5 {[%emt 0:00:10]} Ne7 {[%emt 0:00:15]} 13. Bc4 {[%emt 0:00:28]} Bd7 {[%emt 0:00:40]} 14. O-O {[%emt 0:01:13]} O-O-O {[%emt 0:00:00]} 15. Nc3 {[%emt 0:00:35]} Qh8 {[%emt 0:00:00]} 16. h3 {[%emt 0:01:04]} Qh7 {[%emt 0:00:50]} 17. Qe1 {[%emt 0:01:08]} Ng6 {[%emt 0:00:36]} 18. Bd3 {[%emt 0:00:06]} Re8 {[%emt 0:00:38]} 19. h4 {[%emt 0:00:17]} Rh8 {[%emt 0:00:49]} 20. g3 {[%emt 0:00:40]} Qh5 {[%emt 0:01:22]} 21. Bxg6 {[%emt 0:00:28]} Qxg6 {[%emt 0:00:23]} 22. Qxe5 {[%emt 0:00:21]} Re8 {[%emt 0:02:12]} 23. Qf4 {[%emt 0:00:14]} Bc6 {[%emt 0:00:57]} 24. d3 {[%emt 0:01:35][%cal Bd2d3,Bd3d4,Bd4d5][%mdl 32]} Qe6 {[%emt 0:03:38]} 25. Bd2 {[%emt 0:00:16]} Qh3 {[%emt 0:01:54]} 26. f3 {[%emt 0:00:26]} Rh8 {[%emt 0:02:17]} 27. d4 {[%emt 0:00:20]} g5 {[%emt 0:00:43]} 28. Qxg5 {[%emt 0:00:29]} Rf8 {[%emt 0:00:35]} 29. d5 {[%emt 0:00:21]} Bd7 {[%emt 0:02:41]} 30. Rf2 {[%emt 0:01:31]} Be8 {[%emt 0:00:38]} 31. Rh2 {[%emt 0:00:23]} Qd7 {[%emt 0:00:19]} 32. h5 {[%emt 0:00:16]} Qf7 {[%emt 0:01:19]} 33. h6 {[%emt 0:00:28]} Qxf3 {[%emt 0:00:33]} 34. h7 {[%emt 0:00:16] White mates.} Rh8 {[%emt 0:11:19]} 35. Qg7 {[%emt 0:00:13]} Qf8 {[%emt 0:02:43]} 36. Qxf8 {[%emt 0:00:13]} Rxf8 {[%emt 0:00:12]} 37. h8=Q {[%emt 0:00:50]} Kd7 {[%emt 0:00:04][%cal Bc8d7,Bd7c6,Bc6c5,Bc5b4,Bb4a5][%mdl 32]} 38. Qxf8 {[%emt 0:00:13]} c6 {[%emt 0:01:33]} 39. dxc6+ {[%emt 0:00:09]} bxc6 {[%emt 0:00:09][%cal Bb7c6,Bc6c5,Bc5c4][%mdl 32]} 40. g4 {[%emt 0:00:06][%cal Bg3g4,Bg4g5][%mdl 32]} c5 {[%emt 0:01:31]} 41. g5 {[%emt 0:01:43]} c4 {[%emt 0:00:00]} 42. Rh7+ {[%emt 0:00:14]} Kc6 {[%emt 0:01:36]} 43. Qxe8+ {[%emt 0:00:14]} Kc5 {[%emt 0:00:15]} 44. Qe3+ {[%emt 0:00:17]} Kb4 {[%emt 0:00:32]} 45. Rb7+ {[%emt 0:00:31]} Ka5 {[%emt 0:00:21]} 46. Qxa7# {[%emt 0:00:05] Black did not feel at home in the position after the opening.   Weighted Error Value: White=0.84/Black=3.13.  Inaccurate:     	---       	Black=1      Best:        	White=1     	---} 1-0

[Event "DVM U10 2024"]
[Site "Duesseldorf"]
[Date "2024.12.28"]
[Round "6"]
[White "Jiang, Lucas"]
[Black "Sandal, Ilyas"]
[Result "1-0"]
[ECO "C50"]
[WhiteElo "2261"]
[BlackElo "943"]
[Annotator "RC"]
[PlyCount "125"]
[EventDate "2024.12.23"]
[EventType "team-tourn"]
[EventRounds "7"]
[EventCountry "GER"]
[SourceTitle "playchess.com"]
[Source "ChessBase"]
[SourceQuality "1"]
[TimeControl "3300+5"]

1. e4 {[%emt 0:00:02]} e5 {[%emt 0:00:04]} 2. Nf3 {[%emt 0:00:15]} Nc6 {[%emt 0:00:02]} 3. Bc4 {[%emt 0:00:08]} Bc5 {[%emt 0:00:01]} 4. c3 {[%emt 0:00:07]} d6 {[%emt 0:00:15]} 5. d3 {[%emt 0:00:11]} Bg4 {[%emt 0:00:08]} 6. h3 {[%emt 0:00:19]} Bh5 {[%emt 0:00:05]} 7. Be3 {[%emt 0:00:34]} Bb6 {[%emt 0:00:07]} 8. Nbd2 {[%emt 0:00:10]} h6 {[%emt 0:00:19]} 9. O-O {[%emt 0:00:28]} Nf6 {[%emt 0:00:11]} 10. d4 {[%emt 0:00:22]} exd4 {[%emt 0:00:08]} 11. cxd4 {[%emt 0:00:36]} Bxd4 {[%emt 0:00:22]} 12. Bxd4 {[%emt 0:00:18]} Nxd4 {[%emt 0:00:09]} 13. Qa4+ {[%emt 0:00:27]} c6 {[%emt 0:00:49]} 14. Bxf7+ {[%emt 0:00:38]} Bxf7 {[%emt 0:00:29]} 15. Qxd4 {[%emt 0:00:11]} O-O {[%emt 0:00:35]} 16. Rfe1 {[%emt 0:02:40]} Re8 {[%emt 0:01:10]} 17. Nc4 {[%emt 0:00:42]} Bxc4 {[%emt 0:00:40]} 18. Qxc4+ {[%emt 0:00:16]} d5 {[%emt 0:00:04]} 19. exd5 {[%emt 0:00:27]} Qxd5 {[%emt 0:00:34]} 20. Qb4 {[%emt 0:02:58]} c5 {[%emt 0:00:42]} 21. Qc3 {[%emt 0:01:02]} Ne4 {[%emt 0:00:33]} 22. Qc2 {[%emt 0:00:58]} c4 {[%emt 0:01:15]} 23. Rad1 {[%emt 0:00:32]} Qc6 {[%emt 0:00:29]} 24. Re3 {[%emt 0:01:46]} Nf6 {[%emt 0:00:42]} 25. Ne5 {[%emt 0:00:58]} Qc5 {[%emt 0:00:45]} 26. Qxc4+ {[%emt 0:00:31]} Qxc4 {[%emt 0:00:19]} 27. Nxc4 {[%emt 0:00:13]} Rxe3 {[%emt 0:00:12]} 28. Nxe3 {[%emt 0:00:12]} Rc8 {[%emt 0:00:37]} 29. Kh2 {[%emt 0:01:55]} Rc5 {[%emt 0:00:22]} 30. f3 {[%emt 0:01:41]} Kh7 {[%emt 0:00:14]} 31. Kg3 {[%emt 0:00:35]} Kg6 {[%emt 0:00:23]} 32. f4 {[%emt 0:00:48]} h5 {[%emt 0:00:46]} 33. Kf3 {[%emt 0:00:41]} Kh6 {[%emt 0:00:20]} 34. g4 {[%emt 0:00:37]} hxg4+ {[%emt 0:00:27]} 35. hxg4 {[%emt 0:00:14]} g5 {[%emt 0:00:06]} 36. Rh1+ {[%emt 0:00:27]} Kg6 {[%emt 0:00:14]} 37. f5+ {[%emt 0:00:29]} Kg7 {[%emt 0:00:15]} 38. Rh2 {[%emt 0:00:52]} b6 {[%emt 0:00:25]} 39. Rc2 {[%emt 0:00:09]} Rxc2 {[%emt 0:00:04]} 40. Nxc2 {[%emt 0:00:06]} Kf7 {[%emt 0:00:07]} 41. Ne3 {[%emt 0:00:57]} a6 {[%emt 0:00:13]} 42. Ke2 {[%emt 0:00:26]} Ke7 {[%emt 0:00:10]} 43. Kd3 {[%emt 0:00:16]} Kd6 {[%emt 0:00:04]} 44. Kd4 {[%emt 0:00:25]} a5 {[%emt 0:00:26]} 45. a4 {[%emt 0:00:44]} Kd7 {[%emt 0:00:43]} 46. Ke5 {[%emt 0:00:25]} Ke7 {[%emt 0:00:19]} 47. Nd5+ {[%emt 0:00:32]} Nxd5 {[%emt 0:01:13]} 48. Kxd5 {[%emt 0:00:11]} Kf6 {[%emt 0:00:24]} 49. Kc6 {[%emt 0:00:13]} Ke5 {[%emt 0:00:11]} 50. Kxb6 {[%emt 0:00:15]} Kf4 {[%emt 0:00:10]} 51. f6 {[%emt 0:00:08]} Kxg4 {[%emt 0:00:04]} 52. f7 {[%emt 0:00:07]} Kh3 {[%emt 0:00:04]} 53. f8=Q {[%emt 0:00:11]} g4 {[%emt 0:00:03]} 54. Kxa5 {[%emt 0:00:36]} g3 {[%emt 0:00:14]} 55. Qg7 {[%emt 0:00:12]} g2 {[%emt 0:00:04]} 56. Qxg2+ {[%emt 0:00:07]} Kxg2 {[%emt 0:00:05]} 57. b4 {[%emt 0:00:08]} Kf2 {[%emt 0:00:05]} 58. b5 {[%emt 0:00:06]} Ke2 {[%emt 0:00:04]} 59. b6 {[%emt 0:00:05]} Kd3 {[%emt 0:00:08]} 60. b7 Kd4 {[%emt 0:01:13]} 61. b8=Q {[%emt 0:00:53]} Kd5 {[%emt 0:00:00]} 62. Qf4 {[%emt 0:01:06]} Ke6 {[%emt 0:00:18]} 63. Qf7+ {[%emt 0:00:05]} 1-0

[Event "DVM U10 2024"]
[Site "Duesseldorf"]
[Date "2024.12.28"]
[Round "6"]
[White "Schmidt, Fabian"]
[Black "Gerhardt, Noah"]
[Result "1/2-1/2"]
[ECO "C50"]
[WhiteElo "1971"]
[BlackElo "1140"]
[Annotator "NA RC"]
[PlyCount "65"]
[EventDate "2024.12.23"]
[EventType "team-tourn"]
[EventRounds "7"]
[EventCountry "GER"]
[SourceTitle "playchess.com"]
[Source "ChessBase"]
[SourceQuality "1"]
[TimeControl "3300+5"]

1. e4 {[%emt 0:00:01]} e5 {[%emt 0:00:04]} 2. Nf3 {[%emt 0:00:01]} Nc6 {[%emt 0:00:07]} 3. Bc4 {[%emt 0:00:01]} Bc5 {[%emt 0:00:09]} 4. O-O {[%emt 0:00:06]} Nf6 {[%emt 0:00:13]} 5. Nc3 {[%emt 0:00:05]} d6 {[%emt 0:00:18]} 6. h3 {[%emt 0:00:05]} O-O {[%emt 0:00:10]} 7. d3 {[%emt 0:00:11]} h6 {[%emt 0:00:08]} 8. Be3 {[%emt 0:00:05]} Bb6 {[%emt 0:00:12]} 9. Qd2 {[%emt 0:00:15]} Be6 {[%emt 0:01:03]} 10. Bb3 {[%emt 0:00:06]} Ba5 {[%emt 0:00:45]} 11. Rfe1 {[%emt 0:00:54]} Bxc3 {[%emt 0:00:50]} 12. Qxc3 {[%emt 0:00:20]} Bxb3 {[%emt 0:00:35]} 13. axb3 {[%emt 0:00:57]} Re8 {[%emt 0:00:14]} 14. Qd2 {[%emt 0:20:32]} Qd7 {[%emt 0:02:03]} 15. Nh4 {[%emt 0:00:49]} d5 {[%emt 0:01:56]} 16. c3 {[%emt 0:07:27]} dxe4 {[%emt 0:00:58]} 17. dxe4 {[%emt 0:00:22]} Qxd2 18. Bxd2 {[%emt 0:00:02]} Rad8 {[%emt 0:01:12]} 19. Nf3 {[%emt 0:01:39]} Rd3 {[%emt 0:00:33]} 20. Rad1 {[%emt 0:02:08]} Red8 {[%emt 0:02:58]} 21. b4 {[%emt 0:00:38]} Nh5 {[%emt 0:00:24]} 22. b5 {[%emt 0:00:19]} Na5 {[%emt 0:01:28]} 23. Re3 {[%emt 0:08:05]} R3d6 {[%emt 0:01:29]} 24. g3 {[%emt 0:01:07]} Nc4 {[%emt 0:01:20]} 25. Re2 {[%emt 0:00:04]} Nxb2 {[%emt 0:00:40]} 26. Rb1 {[%emt 0:00:06]} Nc4 {[%emt 0:00:13]} 27. Rd1 {[%emt 0:00:05]} Nb2 {[%emt 0:00:14]} 28. Rb1 {[%emt 0:00:06]} Nc4 {[%emt 0:00:12]} 29. Rd1 {[%emt 0:01:03]} Nb2 {[%emt 0:01:03]} 30. Rb1 {[%emt 0:00:00]} Nc4 {[%emt 0:00:05]} 31. Rd1 {[%emt 0:00:00]} Nb2 {[%emt 0:00:29]} 32. Rb1 {[%emt 0:00:02]} Nc4 33. Rd1 {[%emt 0:00:01]} 1/2-1/2

[Event "DVM U10 2024"]
[Site "Duesseldorf"]
[Date "2024.12.28"]
[Round "6"]
[White "Mueller, Konstantin"]
[Black "Braren, Ove Neelis"]
[Result "1/2-1/2"]
[ECO "C54"]
[WhiteElo "1957"]
[BlackElo "1634"]
[Annotator "NA RC"]
[PlyCount "114"]
[EventDate "2024.12.23"]
[EventType "team-tourn"]
[EventRounds "7"]
[EventCountry "GER"]
[SourceTitle "playchess.com"]
[Source "ChessBase"]
[SourceQuality "1"]
[TimeControl "3300+5"]

1. e4 {[%emt 0:00:02]} e5 {[%emt 0:00:10]} 2. Nf3 {[%emt 0:00:04]} Nc6 {[%emt 0:00:07]} 3. Bc4 {[%emt 0:00:06]} Nf6 {[%emt 0:00:09]} 4. d3 {[%emt 0:00:18]} Bc5 {[%emt 0:00:25]} 5. c3 {[%emt 0:00:27]} a6 {[%emt 0:00:50]} 6. O-O {[%emt 0:01:53]} d6 {[%emt 0:00:24]} 7. Bb3 {[%emt 0:00:34]} h6 {[%emt 0:00:29]} 8. Re1 {[%emt 0:01:02]} Ng4 {[%emt 0:01:42]} 9. Re2 {[%emt 0:01:15]} Ba7 {[%emt 0:00:44]} 10. Nbd2 {[%emt 0:00:26]} O-O {[%emt 0:01:19]} 11. Nf1 {[%emt 0:00:37]} Be6 {[%emt 0:01:09]} 12. h3 {[%emt 0:05:57]} Nf6 {[%emt 0:00:10]} 13. Ne3 {[%emt 0:02:49]} Qd7 {[%emt 0:02:11]} 14. Nd5 {[%emt 0:02:54]} Bxd5 {[%emt 0:01:46]} 15. exd5 {[%emt 0:01:39]} Ne7 {[%emt 0:01:18]} 16. c4 {[%emt 0:05:49]} Nf5 {[%emt 0:03:06]} 17. Be3 {[%emt 0:01:42]} Rfe8 {[%emt 0:05:24]} 18. Bxa7 {[%emt 0:01:31]} Rxa7 {[%emt 0:00:06]} 19. Bc2 {[%emt 0:02:42]} Raa8 {[%emt 0:02:33]} 20. Qd2 {[%emt 0:01:23]} Re7 {[%emt 0:04:57]} 21. Rae1 {[%emt 0:01:44]} Rae8 {[%emt 0:01:03]} 22. b4 {[%emt 0:00:58]} Kf8 {[%emt 0:04:40]} 23. a4 {[%emt 0:01:23]} Nd4 {[%emt 0:02:52]} 24. Nxd4 {[%emt 0:00:08]} exd4 {[%emt 0:00:26]} 25. Kf1 {[%emt 0:01:34]} Rxe2 {[%emt 0:01:41]} 26. Rxe2 {[%emt 0:00:43]} Rxe2 {[%emt 0:00:35]} 27. Kxe2 {[%emt 0:00:21]} Qe7+ {[%emt 0:00:42]} 28. Kf1 {[%emt 0:00:08]} Qe5 {[%emt 0:01:07]} 29. g3 {[%emt 0:00:42]} Ke7 {[%emt 0:03:40]} 30. a5 {[%emt 0:00:07]} Kd7 {[%emt 0:00:29]} 31. f4 {[%emt 0:01:12]} Qe8 {[%emt 0:01:21]} 32. Ba4+ {[%emt 0:00:32]} c6 {[%emt 0:00:37]} 33. b5 {[%emt 0:00:34]} axb5 {[%emt 0:00:42]} 34. dxc6+ {[%emt 0:00:25]} bxc6 {[%emt 0:00:21]} 35. cxb5 {[%emt 0:00:08]} Qa8 {[%emt 0:00:45]} 36. bxc6+ {[%emt 0:00:24]} Kc7 {[%emt 0:00:11]} 37. Qb4 {[%emt 0:03:36]} Nd5 {[%emt 0:00:50]} 38. Qxd4 {[%emt 0:02:10]} Qxa5 {[%emt 0:00:28]} 39. Qxg7 {[%emt 0:00:23]} Qxa4 {[%emt 0:00:26]} 40. Qxf7+ {[%emt 0:00:06]} Kb6 {[%emt 0:00:48]} 41. Qxd5 {[%emt 0:01:50]} Qd1+ {[%emt 0:00:41]} 42. Kf2 {[%emt 0:00:06]} Qd2+ {[%emt 0:00:06]} 43. Kf3 {[%emt 0:00:11]} Qd1+ {[%emt 0:00:13]} 44. Ke3 {[%emt 0:01:27]} Qe1+ {[%emt 0:00:37]} 45. Kd4 {[%emt 0:00:08]} Qa1+ {[%emt 0:00:13]} 46. Kc4 {[%emt 0:00:31]} Qa2+ {[%emt 0:00:07]} 47. Kd4 {[%emt 0:00:02]} Qa1+ {[%emt 0:00:01]} 48. Ke3 {[%emt 0:00:05]} Qe1+ {[%emt 0:00:03]} 49. Kd4 {[%emt 0:00:11]} Qa1+ {[%emt 0:00:04]} 50. Ke4 {[%emt 0:00:13]} Qh1+ {[%emt 0:00:04]} 51. Kd4 {[%emt 0:00:21]} Qa1+ {[%emt 0:00:03]} 52. Ke3 {[%emt 0:00:12]} Qe1+ {[%emt 0:00:03]} 53. Kd4 {[%emt 0:00:01]} Qa1+ {[%emt 0:00:06]} 54. Kc4 {[%emt 0:00:01]} Qa2+ {[%emt 0:00:03]} 55. Kd4 {[%emt 0:00:02]} Qa1+ {[%emt 0:00:02]} 56. Ke4 {[%emt 0:00:03]} Qh1+ {[%emt 0:00:02]} 57. Kd4 {[%emt 0:00:03]} Qa1+ {[%emt 0:00:05]} 1/2-1/2

[Event "DVM U10 2024"]
[Site "Duesseldorf"]
[Date "2024.12.28"]
[Round "6"]
[White "Boeskov, Steffen"]
[Black "Sander, Bela"]
[Result "0-1"]
[ECO "C50"]
[WhiteElo "1933"]
[BlackElo "1117"]
[Annotator "NA RC"]
[PlyCount "66"]
[EventDate "2024.12.23"]
[EventType "team-tourn"]
[EventRounds "7"]
[EventCountry "GER"]
[SourceTitle "playchess.com"]
[Source "ChessBase"]
[SourceQuality "1"]
[TimeControl "3300+5"]

1. e4 {[%emt 0:00:01]} e5 {[%emt 0:00:04]} 2. Nf3 {[%emt 0:00:07]} Nc6 {[%emt 0:00:07]} 3. Bc4 {[%emt 0:00:07]} Bc5 {[%emt 0:00:07]} 4. d3 {[%emt 0:00:22]} h6 {[%emt 0:00:14]} 5. Nc3 {[%emt 0:01:31]} d6 {[%emt 0:00:14]} 6. h3 {[%emt 0:00:17]} Nf6 {[%emt 0:00:21]} 7. O-O {[%emt 0:00:14]} Be6 {[%emt 0:00:17]} 8. Bxe6 {[%emt 0:00:18]} fxe6 {[%emt 0:00:06]} 9. Qe2 {[%emt 0:01:33]} Qe7 {[%emt 0:00:36]} 10. Be3 {[%emt 0:00:11]} Bxe3 {[%emt 0:00:12]} 11. Qxe3 {[%emt 0:00:11]} O-O-O {[%emt 0:00:33]} 12. Nb5 {[%emt 0:00:50]} Kb8 {[%emt 0:02:32]} 13. d4 {[%emt 0:00:36]} a6 {[%emt 0:01:43]} 14. Nc3 {[%emt 0:00:18]} exd4 {[%emt 0:01:12]} 15. Nxd4 {[%emt 0:00:11]} Nxd4 {[%emt 0:00:28]} 16. Qxd4 {[%emt 0:00:10]} e5 {[%emt 0:00:55]} 17. Qe3 {[%emt 0:00:23]} c6 {[%emt 0:01:52]} 18. Rfd1 {[%emt 0:00:41]} d5 {[%emt 0:01:06]} 19. exd5 {[%emt 0:00:16]} cxd5 {[%emt 0:00:34]} 20. Na4 {[%emt 0:05:35]} d4 {[%emt 0:01:39]} 21. Qb3 {[%emt 0:00:19]} h5 {[%emt 0:01:50]} 22. Qb6 {[%emt 0:02:42]} Nd5 {[%emt 0:03:01]} 23. Qc5 {[%emt 0:01:46]} Qxc5 {[%emt 0:01:29]} 24. Nxc5 {[%emt 0:00:07]} Rc8 {[%emt 0:00:11]} 25. Nd7+ {[%emt 0:00:30]} Ka7 {[%emt 0:01:03]} 26. Nxe5 {[%emt 0:00:11]} Rxc2 {[%emt 0:00:05]} 27. Rxd4 {[%emt 0:00:25]} Nb6 {[%emt 0:00:48]} 28. Nf7 {[%emt 0:00:38]} Rf8 {[%emt 0:00:20]} 29. Nd6 {[%emt 0:01:05]} Rfxf2 {[%emt 0:00:22]} 30. Ne4 {[%emt 0:01:59]} Rxg2+ {[%emt 0:00:30]} 31. Kf1 {[%emt 0:00:12]} Rxb2 {[%emt 0:00:15]} 32. Nc5 {[%emt 0:02:07]} Rxa2 {[%emt 0:01:37]} 33. Re1 {[%emt 0:00:44]} Raf2# {[%emt 0:00:14]} 0-1

[Event "DVM U10 2024"]
[Site "Duesseldorf"]
[Date "2024.12.28"]
[Round "6"]
[White "Pereira, Jefferson Luis de S."]
[Black "Liu, Siyuan B"]
[Result "0-1"]
[ECO "C47"]
[WhiteElo "1932"]
[BlackElo "1687"]
[Annotator "NA RC"]
[PlyCount "100"]
[EventDate "2024.12.23"]
[EventType "team-tourn"]
[EventRounds "7"]
[EventCountry "GER"]
[SourceTitle "playchess.com"]
[Source "ChessBase"]
[SourceQuality "1"]
[TimeControl "3300+5"]

1. e4 {[%emt 0:00:04]} e5 {[%emt 0:00:03]} 2. Nf3 {[%emt 0:00:05]} Nc6 {[%emt 0:00:09]} 3. Nc3 {[%emt 0:00:10]} Nf6 {[%emt 0:00:05]} 4. d4 {[%emt 0:00:05]} d6 {[%emt 0:00:28]} 5. d5 {[%emt 0:00:15]} Nb8 {[%emt 0:00:16]} 6. Bg5 {[%emt 0:00:34]} h6 {[%emt 0:00:11]} 7. Bh4 {[%emt 0:00:18]} g6 {[%emt 0:00:10]} 8. Bb5+ {[%emt 0:01:02]} Nbd7 {[%emt 0:00:09]} 9. O-O {[%emt 0:03:24]} Bg7 {[%emt 0:00:09]} 10. h3 {[%emt 0:01:19]} a6 {[%emt 0:00:09]} 11. Ba4 {[%emt 0:00:08]} b5 {[%emt 0:00:20]} 12. Bb3 {[%emt 0:00:06]} O-O {[%emt 0:00:14]} 13. Qd2 {[%emt 0:00:28]} Rb8 {[%emt 0:00:24]} 14. Rfe1 {[%emt 0:00:49]} b4 {[%emt 0:00:16]} 15. Na4 {[%emt 0:00:12]} a5 {[%emt 0:00:10]} 16. a3 {[%emt 0:00:20]} Ba6 {[%emt 0:00:37]} 17. Ba2 {[%emt 0:02:03]} Bb5 {[%emt 0:00:40]} 18. Bb3 {[%emt 0:00:41]} Nc5 {[%emt 0:00:34]} 19. g3 {[%emt 0:00:57]} Bxa4 {[%emt 0:00:15]} 20. Re3 {[%emt 0:00:17]} Nxb3 {[%emt 0:00:24]} 21. cxb3 {[%emt 0:00:10]} Bb5 {[%emt 0:00:12]} 22. a4 {[%emt 0:02:48]} Ba6 {[%emt 0:00:13]} 23. Rc1 {[%emt 0:00:55]} c5 {[%emt 0:00:12]} 24. dxc6 {[%emt 0:00:29]} Rc8 {[%emt 0:00:24]} 25. Qc2 {[%emt 0:00:52]} Qc7 {[%emt 0:00:15]} 26. g4 {[%emt 0:00:36]} g5 {[%emt 0:00:10]} 27. Bg3 {[%emt 0:00:33]} Rfe8 {[%emt 0:01:05]} 28. Nh2 {[%emt 0:03:10]} Red8 {[%emt 0:00:18]} 29. h4 {[%emt 0:00:45]} gxh4 {[%emt 0:00:21]} 30. Bxh4 {[%emt 0:00:19]} d5 {[%emt 0:00:45]} 31. g5 {[%emt 0:00:33]} hxg5 {[%emt 0:00:10]} 32. Bxg5 {[%emt 0:00:06]} d4 {[%emt 0:00:14]} 33. Rg3 {[%emt 0:00:28]} Rd6 {[%emt 0:00:31]} 34. Qd2 {[%emt 0:02:29]} Nxe4 {[%emt 0:00:18]} 35. Qd1 {[%emt 0:02:21]} Nxg3 {[%emt 0:00:11]} 36. fxg3 {[%emt 0:00:07]} Rxc6 {[%emt 0:00:18]} 37. Ng4 {[%emt 0:01:02]} Rxc1 {[%emt 0:00:18]} 38. Bxc1 {[%emt 0:00:08]} Qxc1 {[%emt 0:00:12]} 39. Qxc1 {[%emt 0:00:11]} Rxc1+ {[%emt 0:00:08]} 40. Kg2 {[%emt 0:00:11]} Rc2+ {[%emt 0:00:03]} 41. Kh3 {[%emt 0:00:09]} Rxb2 {[%emt 0:00:13]} 42. Kh4 {[%emt 0:00:11]} Rxb3 {[%emt 0:00:09]} 43. Kh5 {[%emt 0:00:04]} Rxg3 {[%emt 0:00:11]} 44. Nh6+ {[%emt 0:00:08]} Bxh6 {[%emt 0:00:13]} 45. Kh4 {[%emt 0:00:12]} Rg7 {[%emt 0:00:09]} 46. Kh5 {[%emt 0:00:12]} e4 {[%emt 0:00:08]} 47. Kxh6 {[%emt 0:00:03]} e3 {[%emt 0:00:28]} 48. Kh5 {[%emt 0:00:10]} e2 {[%emt 0:00:06]} 49. Kh6 {[%emt 0:00:07]} e1=R {[%emt 0:00:07]} 50. Kh5 {[%emt 0:00:07]} Rh1# {[%emt 0:00:06]} 0-1